Workbook

Sheet 11-12 Dept. Grants
A1: Emerson Jr. High PTA
A2: 2011-2012 Budget Report - Department Grants 5-10-12
B4: Amount | C4: Spent | D4: Un-Spent
B5: Awarded | C5: To Date | D5: Balance
A6: Diversity Training for 2011-12 | B6: 3000 | C6: 3000 | D6: =B6-C6 -> 0
A7: Response to Intervention (RTI) Conference | B7: 530 | C7: 530 | D7: 0
A8: 9th Grade Awards | B8: 500 | D8: 500
A9: Library | B9: 861.97 | C9: =750.8+738.24 -> 1489.04 | D9: -627.07 | E9: Approved at 4/5/12 board meeting
A10: WEB | B10: 525 | D10: 525
A11: Industrial Arts | B11: 2073.58 | C11: 2151.97 | D11: -78.39
A12: Special Education | B12: 312.75 | C12: =359.66+3.09 -> 362.75 | D12: -50
A13: Peer-helping/Leadership | B13: 100 | D13: 100
A14: English | B14: 900 | C14: 900 | D14: 0
A15: Social Studies | B15: 720 | C15: =577.9+302.53 -> 880.43 | D15: -160.43
A16: English/AVID/Yearbook | D16: 0
A17: Document Cameras | B17: 800 | C17: 453.78 | D17: 346.22
A18: Photoshop | B18: 229.9 | C18: 280.59 | D18: -50.69
A19: Conference | B19: 1656 | C19: 1156 | D19: 500
A20: AVID Conference | B20: 700 | C20: =669 -> 669 | D20: 31
A21: Special Education - Document Camera | B21: 199.95 | C21: 199.95 | D21: 0
A22: PE Equipment | B22: 1400 | C22: =106.67+1212.3 -> 1318.97 | D22: 81.03
A23: Math - Document Camera for Da Vinci | B23: 400 | C23: 400 | D23: 0
A24: Read Program | B24: 200 | C24: 199.22 | D24: 0.78
A25: Tax & Shipping | B25: 1890.85 | D25: 1890.85
A26: Art Dept. Ceramics Kiln Shelves & Speakers | B26: 275 | C26: =48.48+201.56 -> 250.04 | D26: 24.96 | E26: Approved at 1/12/12 board meeting
A27: TOTAL | B27: =SUM(B6:B26) -> 17275 | C27: =SUM(C6:C26) -> 14241.74 | D27: =B27-C27 -> 3033.26

Sheet 11-12 Working Budget
A1: Emerson Davinci Jr. Highs PTA
A2: 2013-2014 Approved Budget
L3: NOTES
A4: Account Balance 6/30/2013 | G4: =29918.44+2249.31 -> 32167.75
A6: Income | G6: Approved | I6: Actuals | K6: Difference
C7: General Income
D8: Direct Donations | G8: 11250
D9: Membership | G9: 3500
D10: Interest | G10: 2
F12: Subtotal | G12: =SUM(G8:G10) -> 14752
C14: Grants
D15: Farm to School Garden | G15: 500
F17: Subtotal | G17: =SUM(G15) -> 500
C19: Fundraising
D20: Logo Wear | G20: 300
D21: Student Directory | G21: 3015
D22: Scrip | G22: 6000
F24: Subtotal | G24: =SUM(G20:G22) -> 9315
C26: Gross Income | G26: =G12+G17+G24 -> 24567
A27: Expense | G27: Approved | I27: Actuals | K27: Difference
C28: Program Expense
D29: Directory | G29: 1300
D30: Hospitality/Recognition | G30: 1000
D31: Principal’s Fund | G31: 2000
D32: 9th Grade Grad Party | G32: 750
D33: Parent Education | G33: 300
D34: Department Grants | G34: 15000
D35: Resource Fund | G35: 350
D36: Emerson Impact Project | G36: 22000
D37: Farm to School | G37: 1163.21
F39: Subtotal | G39: =SUM(G29:G37) -> 43863.21
C41: PTA Administration
D42: Bank Charges | G42: =SUM(I51) -> 0
D43: Officer Training | G43: 50
D44: Insurance | G44: 199
D45: PTA Membership Dues | G45: 1100
D46: Fundraising Expenses | G46: 500
D47: PTA Packet | G47: 950
D48: Administration | G48: 60
D49: Unfiled State Tax Fees | G49: 120
D50: Charitable Trust Regis Fee | G50: 25
F51: Subtotal | G51: =SUM(G42:G50) -> 3004
C53: Gross Expenses | G53: =G39+G51 -> 46867.21
C55: Net Income | G55: =G26-G53 -> -22300.21
C56: Account Balance 6/30/2013 | G56: =G4 -> 32167.75
C57: Account Balance 6/30/2014
C58: Minimum Reserve Amount | G58: 9000
C59: 2013-2014 Excess Carryover | G59: =G55+G56-G58 -> 867.54

Sheet 10-11 Working Budget
A1: Emerson Jr. High PTA
A2: 2010-2011 Budget -- ay 2011
A3: Account Balance 6/30/2010 | G3: 36215.52
A4: Minimum Reserve Amount | G4: 12000
G6: Adopted | I6: Actuals | K6: Difference
A7: Income
C8: General Income
D9: Direct Donations | G9: 5100 | I9: 5462.53 | K9: =SUM(I9-G9) -> 362.53
D10: Membership | G10: 3300 | I10: 3470 | K10: =SUM(I10-G10) -> 170
F13: Subtotal | G13: =G9+G10 -> 8400 | I13: =I9+I10+I11 -> 8932.53 | K13: =SUM(I13-G13) -> 532.53
C15: Grants
D16: Farm to School Garden | I16: 500
F18: Subtotal | I18: =SUM(I16) -> 500
C20: Fundraising
D21: Logo Wear | G21: 2240 | I21: 2426 | K21: =SUM(I21-G21) -> 186
D22: Student Directory
E23: Purchased | G23: 390 | I23: 410 | K23: =SUM(I23-G23) -> 20
E24: Ad Revenue | G24: 5780 | I24: 6065 | K24: =SUM(I24-G24) -> 285
D25: Carnival | G25: 0 | I25: 0
D26: Scrip | G26: 6000 | I26: 2908.01 | K26: =SUM(I26-G26) -> -3091.99
F28: Subtotal | G28: =G21+G23+G24+G25+G26 -> 14410 | I28: =I21+I23+I24+I25+I26 -> 11809.01 | K28: =SUM(I28-G28) -> -2600.99
C30: Gross Income | G30: =G13+G28 -> 22810 | I30: =I13+I18+I28 -> 21241.54 | K30: =SUM(I30-G30) -> -1568.46
A31: Expense | G31: Adopted | I31: Actuals | K31: Difference
C32: Program Expense
D33: Directory | G33: 3000 | I33: 2306.08 | K33: =SUM(G33-I33)+J3 -> 693.92
D34: Hospitality/Recognition | G34: 1325 | I34: 538.87 | K34: =SUM(G34-I34) -> 786.13
D35: Logo Wear | G35: 2240 | I35: 1465.95 | K35: =SUM(G35-I35) -> 774.05
D36: Principal’s Fund | G36: 3000 | I36: 1200 | K36: =SUM(G36-I36) -> 1800
D37: 9th Grade Grad Party | G37: 1000
D38: Parent Education | G38: 500 | I38: 275 | K38: =SUM(G38-I38) -> 225
D39: Department Grants | G39: 26460 | I39: =SUM(F82) -> 20572.41 | K39: =SUM(G39-I39) -> 5887.59
D40: Resource Fund | G40: 1000
D41: Emerson Impact Project | G41: 3000
F43: Subtotal | G43: =SUM(G33:G41) -> 41525 | I43: =SUM(I33:I40) -> 26358.31 | K43: =SUM(G43-I43) -> 15166.69
A45: Expense | G45: Adopted | I45: Actuals | K45: Difference
C46: PTA Administration
D47: Bank Charges | G47: 50 | I47: 12 | K47: =SUM(G47-I47) -> 38
D48: Officer Training | G48: 200
D49: Insurance | G49: 225 | I49: 196 | K49: =SUM(G49-I49) -> 29
D50: PTA Membership Dues | G50: 1172 | I50: 1231.85 | K50: =SUM(G50-I50) -> -59.85
D51: Fundraising Expenses | G51: 600
D52: PTA Packet | G52: 300
F53: Subtotal | G53: =G47+G48+G49+G50+G51+G52 -> 2547 | I53: =I47+I48+I49+I50+I51 -> 1439.85 | K53: =SUM(G53-I53) -> 1107.15
C55: Gross Expenses | G55: =G43+G53 -> 44072 | I55: =I43+I53 -> 27798.16 | K55: =SUM(G55-I55) -> 16273.84
C57: Net Income | G57: =G30-G55 -> -21262 | I57: =I30-I55 -> -6556.62
C58: Account Balance 6/30/2010 | I58: 36215.52
C59: Minimum Reserve Amount | G59: 12000 | I59: 12000
C60: 2011-2012 Excess Carryover | I60: =SUM(I57+I58-I59) -> 17658.9
A61: Department Grants | F61: Actuals | G61: Adopted | I61: Difference
A63: Wolfe/Amsler | C63: WEB | F63: 714.79 | G63: 714.79 | I63: =SUM(G63-F63) -> 0
A64: J. Terra | C64: Diversity | F64: 3204.28 | G64: 3204.28 | I64: 0
A65: E. Jacobsen | C65: History | F65: 630 | G65: 630 | I65: 0
A66: J. Terra | C66: PE | F66: 650.79 | G66: 1785 | I66: 1134.21
A67: A. Kimmel | C67: Special Ed - books | F67: 325.17 | G67: 389 | I67: 63.83
A68: S.Meade Lee | C68: Spanish | F68: 387.9 | G68: 387.9 | I68: 0
A69: A. Sharpe | C69: Library - books;ALA Conference | F69: 624.04 | G69: 624.04 | I69: 0
A70: J. Terra | C70: Peer Helping | F70: 995 | G70: 995 | I70: 0
A71: A. Cummings | C71: Site Council | F71: 8300 | G71: 8500 | I71: 200
A72: J. Wolfe | C72: English/AVID/Yearbook | F72: 668.2 | G72: 668.2 | I72: 0
A73: L. Gunnerson | C73: Industrial Arts/Woodshop | F73: 360 | G73: 366 | I73: 6
A74: Gina Smith | C74: Drama | F74: 2000 | G74: 2000 | I74: 0
A75: Matt Sonstein | C75: Art | F75: 260.84 | G75: 260.84 | I75: 0
A76: S. McGrath | C76: Counselor | F76: 0 | G76: 500 | I76: 500
A77: C. Hartsough | C77: Health | F77: 660 | G77: 672 | I77: 12
A78: Choir Teachers | F78: 0 | G78: 900 | I78: 900
A79: Kathy Koblik | C79: English | F79: 791.4 | G79: 800 | I79: 8.6
A80: Emily Cooper | C80: Special Education | F80: 0 | G80: 445.02 | I80: 445.02
C82: Total | F82: =SUM(F63:F80) -> 20572.41 | G82: =SUM(G63:G81) -> 23842.07 | I82: =SUM(I63:I81) -> 3269.66
A84: Madeline Levine Parent Education Speaker
C85: Income | F85: 2700
C86: Expense | F86: 2900
C88: Total | F88: =SUM(F85-F86) -> -200
